bitfinex/quotes_SOLUSD_20240616
["timestamp","ask_amount","ask_price","bid_price","bid_amount"]
[1718558040134,7.02657135,148.52,148.51,14.9484]
[1718558040449,12.36657135,148.52,148.51,24.914]
[1718558042535,7.02657135,148.52,148.51,24.914]
[1718558042739,12.36657135,148.52,148.51,24.914]
[1718558044552,12.36657135,148.52,148.51,2.4914]
[1718558045433,12.36657135,148.52,148.51,7.4742]
[1718558045833,12.36657135,148.52,148.51,14.9484]
[1718558046329,7.02657135,148.52,148.51,14.9484]
[1718558046649,7.02657135,148.52,148.51,24.914]
[1718558046943,5.34,148.53,148.52,2.4912]
[1718558048929,5.34,148.53,148.51,22.4218]
[1718558049144,5.34,148.53,148.52,2.4912]
[1718558049323,5.34,148.53,148.52,24.9122]
[1718558050238,5.34,148.53,148.52,7.4736]
[1718558051341,5.34,148.53,148.52,24.9122]
[1718558053834,16.4977084,148.55,148.53,14.946]
[1718558054048,5.34,148.54,148.53,14.946]
[1718558054639,5.34,148.54,148.53,2.4909]
[1718558055252,7.4732,148.53,148.51,2.4914]
[1718558055444,5.34,148.52,148.51,2.4914]
[1718558055649,5.34,148.52,148.5,24.9147]
[1718558056155,5.34,148.52,148.51,2.4914]
[1718558057054,5.34,148.52,148.5,24.9147]
[1718558057238,5.34,148.52,148.51,2.4914]
[1718558057434,10.3227,148.52,148.45,6.6359]
[1718558057640,10.3227,148.52,148.47,14.9523]
[1718558057641,5.34,148.48,148.47,14.9523]
[1718558057839,5.34,148.48,148.47,24.9206]
[1718558059065,22.4245,148.5,148.47,2.492]
[1718558059359,5.34,148.48,148.47,7.4761]
[1718558060054,5.34,148.48,148.47,14.9523]
[1718558060553,5.34,148.48,148.47,24.9206]
[1718558060767,9.519213,148.5,148.48,7.4754]
[1718558060962,9.519213,148.5,148.47,17.4441]
[1718558060963,7.8317,148.49,148.47,2.4919]
[1718558061170,2.4923,148.46,148.44,2.4924]
[1718558061465,5.34,148.45,148.43,22.4339]
[1718558061773,5.34,148.44,148.43,24.927]
[1718558062438,2.4923,148.46,148.44,2.4925]
[1718558062640,7.8321,148.47,148.44,22.433]
[1718558062864,2.4922,148.46,148.44,7.4774]
[1718558063054,2.4922,148.46,148.44,2.4924]
[1718558063241,5.34,148.45,148.44,2.4924]
[1718558063962,2.4922,148.46,148.44,2.4924]
[1718558064168,5.34,148.45,148.44,2.4924]
[1718558064374,5.34,148.45,148.44,7.4775]
[1718558066262,5.34,148.45,148.44,24.9255]
[1718558066466,0.51,148.49,148.47,2.492]
[1718558066467,2.4918,148.49,148.47,2.492]
[1718558066669,5.34,148.48,148.47,2.492]
[1718558066861,25.34,148.48,148.47,2.492]
[1718558067065,32.8158,148.48,148.46,2.4921]
[1718558067243,25.34,148.47,148.46,2.4921]
[1718558067442,25.34,148.47,148.45,24.9232]
[1718558067641,25.34,148.47,148.45,17.4464]
[1718558067871,25.34,148.47,148.46,2.4922]
[1718558069167,25.34,148.47,148.45,7.477]
[1718558069362,5.34,148.46,148.45,7.477]
[1718558071587,5.34,148.46,148.45,2.4924]
[1718558072093,5.34,148.46,148.44,24.9247]
[1718558072593,5.34,148.46,148.44,22.4323]
[1718558072790,5.34,148.46,148.44,24.9247]
[1718558073169,5.34,148.46,148.45,7.4772]
[1718558073487,5.34,148.46,148.45,2.4924]
[1718558073682,5.34,148.46,148.44,22.4322]
[1718558073885,7.8322,148.46,148.44,7.4773]
[1718558074802,5.34,148.46,148.44,7.4773]
[1718558074971,7.8323,148.46,148.44,2.4924]
[1718558075391,22.4922,148.47,148.45,2.4923]
[1718558075591,5.34,148.46,148.44,22.4328]
[1718558075790,5.34,148.46,148.45,2.4923]
[1718558076175,5.34,148.46,148.44,22.4328]
[1718558076176,5.34,148.46,148.44,24.9252]
[1718558076786,5.34,148.46,148.45,2.4924]
[1718558077585,5.34,148.46,148.44,7.4775]
[1718558077774,5.34,148.46,148.44,14.9552]
[1718558078689,5.34,148.46,148.45,2.4924]
[1718558079384,5.34,148.46,148.44,24.9255]
[1718558080495,5.34,148.46,148.45,2.4924]
[1718558085483,2.4924,148.45,148.43,2.4927]
[1718558085698,7.8326,148.44,148.42,2.4927]
[1718558085909,5.34,148.43,148.42,24.9289]
[1718558090189,2.4923,148.46,148.44,7.4776]
[1718558090403,7.02812462,148.47,148.45,7.477]
[1718558090614,7.02812462,148.47,148.46,2.4922]
[1718558090912,5.34,148.47,148.46,7.4767]
[1718558091101,24.9181,148.49,148.46,14.9534]
[1718558091415,24.9181,148.49,148.4,5.34]
[1718558091416,5.34,148.49,148.48,14.9511]
[1718558091710,2.4911,148.53,148.51,2.4914]
[1718558091894,2.4911,148.53,148.42,6.214]
[1718558091895,5.34,148.52,148.5,22.4238]
[1718558092094,59.0015,148.54,148.46,5.34]
[1718558092095,22.24887466,148.54,148.46,5.34]
[1718558092293,5.34,148.52,148.51,24.914]
[1718558092508,7.02617466,148.54,148.53,2.491]
[1718558092712,8.3069084,148.55,148.52,7.4734]
[1718558093015,5.34,148.53,148.52,24.9119]
[1718558093320,5.34,148.53,148.52,7.4734]
[1718558093518,5.34,148.53,148.52,14.9471]
[1718558093729,8.3069084,148.55,148.54,2.4909]
[1718558093730,0.8347084,148.55,148.54,2.4909]
[1718558093895,8.6654084,148.55,148.53,7.4729]
[1718558094088,6.1747084,148.55,148.53,7.4729]
[1718558094728,0.8347084,148.55,148.54,2.4909]
[1718558094919,6.1747084,148.55,148.54,2.4909]
[1718558095295,0.8347084,148.55,148.54,7.4727]
[1718558095625,0.8347084,148.55,148.54,24.909]
[1718558095626,6.1747084,148.55,148.54,24.909]
[1718558095795,6.1747084,148.55,148.54,2.4909]
[1718558095987,6.1747084,148.55,148.53,7.4728]
[1718558096313,5.34,148.54,148.53,2.4909]
[1718558096609,5.34,148.54,148.53,7.473]
[1718558096820,5.34,148.54,148.53,24.9105]
[1718558098410,0.8347084,148.55,148.54,24.909]
[1718558098598,6.1747084,148.55,148.54,24.909]
[1718558098920,6.1747084,148.55,148.53,24.9099]
[1718558099223,5.34,148.54,148.53,7.4728]
[1718558099535,5.34,148.54,148.53,24.9103]
[1718558099748,0.8347084,148.55,148.54,14.9454]
[1718558100021,6.1747084,148.55,148.54,24.909]
[1718558100228,6.1747084,148.55,148.54,2.4909]
[1718558100588,6.1747084,148.55,148.53,22.419]
[1718558100820,5.34,148.54,148.53,24.9099]
[1718558101331,6.1747084,148.55,148.54,7.4727]
[1718558102420,6.1747084,148.55,148.54,2.4909]
[1718558102720,6.1747084,148.55,148.53,24.9097]
[1718558102921,0.8347084,148.55,148.53,24.9097]
[1718558103224,0.8347084,148.55,148.54,2.4909]
[1718558103531,0.8347084,148.55,148.54,24.909]
[1718558107512,0.8347084,148.55,148.54,30.249]
[1718558111533,0.8347084,148.55,148.54,24.909]
[1718558115518,0.8347084,148.55,148.54,30.929]
[1718558116023,0.8347084,148.55,148.54,25.079]
[1718558116233,0.8347084,148.55,148.54,30.249]
[1718558116417,0.8347084,148.55,148.54,30.929]
[1718558116839,0.8347084,148.55,148.54,30.589]
[1718558117014,0.8347084,148.55,148.54,24.909]
[1718558120442,6.1747084,148.55,148.54,24.909]
[1718558121365,0.8347084,148.55,148.54,30.249]
[1718558124055,0.8347084,148.55,148.54,24.909]
[1718558126140,0.8347084,148.55,148.54,30.249]
[1718558126976,0.8347084,148.55,148.54,24.909]
[1718558128166,0.8347084,148.55,148.54,30.249]
[1718558129066,0.8347084,148.55,148.54,24.909]
[1718558131849,0.8347084,148.55,148.54,25.079]
[1718558132044,0.8347084,148.55,148.54,30.929]
[1718558133967,8.4e-06,148.55,148.54,51.8915]
[1718558135369,8.4e-06,148.55,148.54,41.2115]
[1718558135576,8.4e-06,148.55,148.54,46.5515]
[1718558136242,8.4e-06,148.55,148.54,30.589]
[1718558137261,8.4e-06,148.55,148.54,25.249]
[1718558137466,8.4e-06,148.55,148.54,30.589]
[1718558142952,7.8295,148.62,148.6,7.4696]
[1718558143160,7.3295,148.62,148.6,7.4696]
[1718558143365,7.3295,148.62,148.59,17.4299]
[1718558143366,7.8297,148.61,148.59,2.4899]
[1718558143589,5.34,148.6,148.59,2.4899]
[1718558144652,27.8798,148.6,148.58,2.4902]
[1718558144859,5.34,148.59,148.58,2.4902]
[1718558146062,5.34,148.59,148.58,7.4706]
[1718558147160,7.8301,148.59,148.57,2.4902]
[1718558147360,5.34,148.59,148.57,2.4902]
[1718558147564,7.8301,148.59,148.57,2.4902]
[1718558148388,5.34,148.58,148.57,2.4902]
[1718558148570,5.34,148.58,148.57,7.471]
[1718558148971,5.34,148.58,148.57,14.9422]
[1718558149566,5.34,148.58,148.57,7.471]
[1718558150177,5.34,148.58,148.57,2.4902]
[1718558150364,5.34,148.58,148.56,24.9046]
[1718558150565,5.34,148.57,148.56,2.4905]
[1718558150978,7.8304,148.57,148.55,7.472]
[1718558151181,7.8306,148.56,148.54,2.4908]
[1718558151378,5.34,148.55,148.54,7.4726]
[1718558151582,5.34,148.55,148.54,24.9089]
[1718558154573,6.0459,148.57,148.55,14.9442]
[1718558154770,5.34,148.56,148.55,14.9442]
[1718558155091,5.34,148.56,148.55,24.9071]
[1718558155896,5.34,148.56,148.55,2.4906]
[1718558157599,5.34,148.56,148.54,24.908]
[1718558157763,5.34,148.56,148.55,2.4907]
[1718558158091,7.8305,148.56,148.54,2.4908]
[1718558158866,12.8116,148.56,148.53,22.4189]
[1718558159595,7.8305,148.56,148.54,2.4908]
[1718558160092,5.34,148.56,148.54,7.4726]
[1718558160386,7.8306,148.56,148.53,22.4189]
[1718558160584,12.8117,148.56,148.53,24.9098]
[1718558160787,7.8306,148.56,148.54,2.4908]
[1718558161198,2.4906,148.56,148.54,2.4908]
[1718558161489,5.34,148.55,148.54,2.4909]
[1718558161786,5.34,148.55,148.53,24.9098]
[1718558161990,5.34,148.55,148.47,15.0284]
[1718558161991,7.03025818,148.58,148.47,20.3684]
[1718558162197,7.03025818,148.58,148.57,7.4712]
[1718558162366,6.0459,148.61,148.6,2.4899]
[1718558162568,11.3859,148.61,148.6,7.4697]
[1718558162766,11.3859,148.61,148.6,14.9394]
[1718558163062,22.09720324,148.64,148.55,5.34]
[1718558163267,22.09720324,148.64,148.62,2.4895]
[1718558163268,24.58650324,148.64,148.62,2.4895]
[1718558163486,5.34,148.63,148.62,2.4895]
[1718558163885,5.34,148.63,148.61,24.8965]
[1718558164061,5.34,148.62,148.61,7.4689]
[1718558164267,5.34,148.62,148.61,14.9381]
[1718558164897,5.34,148.62,148.61,24.897]
[1718558166121,22.09720324,148.64,148.63,2.4894]
[1718558166404,29.92640324,148.64,148.62,7.4683]
[1718558166576,5.34,148.63,148.62,2.4894]
[1718558166764,22.09720324,148.64,148.62,2.4894]
[1718558166968,22.09720324,148.64,148.62,4.9789]
[1718558167262,7.02710324,148.64,148.63,7.4682]
[1718558167474,20.9795,148.66,148.63,7.4682]
[1718558167688,28.00440558,148.66,148.63,7.4682]
[1718558167900,5.34,148.64,148.63,7.4682]
[1718558168106,5.34,148.64,148.63,2.4894]
[1718558168413,5.34,148.64,148.62,7.4683]
[1718558169400,5.34,148.64,148.62,14.9369]
[1718558169912,5.34,148.64,148.61,7.4688]
[1718558169913,12.8076,148.64,148.61,24.8959]
[1718558170209,17.4238,148.65,148.45,258.8]
[1718558170210,5.34,148.62,148.49,15.0701]
[1718558170388,5.34,148.62,148.61,24.8972]
[1718558170589,7.4674,148.65,148.62,14.9371]
[1718558170809,5.34,148.63,148.61,7.4689]
[1718558171114,5.34,148.62,148.61,2.4896]
[1718558171317,5.34,148.62,148.61,24.8972]
[1718558173905,2.4892,148.64,148.62,2.4895]
[1718558174111,5.34,148.63,148.62,7.4686]
[1718558175411,5.34,148.63,148.62,2.4895]
[1718558176887,5.34,148.63,148.61,22.4073]
[1718558176888,5.34,148.63,148.61,24.8969]
[1718558177705,5.34,148.63,148.61,7.4688]
[1718558178636,7.8294,148.63,148.61,2.4896]
[1718558178929,7.8294,148.63,148.6,22.408]
[1718558179104,7.8294,148.63,148.61,2.4897]
[1718558180012,12.8082,148.63,148.6,24.8977]
[1718558180335,20.0,148.64,148.52,20.30179199]
[1718558180635,13.07080558,148.66,148.52,20.30179199]
[1718558180636,7.8299,148.6,148.57,24.9034]
[1718558180846,5.34,148.6,148.59,2.49]
[1718558181315,5.34,148.6,148.58,24.9017]
[1718558181514,5.34,148.61,148.59,4.9801]
[1718558181746,5.34,148.61,148.59,7.47]
[1718558182134,5.34,148.61,148.59,2.4899]
[1718558183048,7.8297,148.61,148.59,2.4899]
[1718558183224,2.4897,148.61,148.59,2.4899]
[1718558183428,7.8297,148.61,148.59,2.4899]
[1718558183626,7.8297,148.61,148.58,24.9015]
[1718558183926,12.8092,148.61,148.58,24.9015]
[1718558184122,7.8297,148.61,148.59,2.49]
[1718558184449,5.34,148.61,148.59,2.49]
[1718558184757,7.8297,148.61,148.59,2.49]
[1718558185254,7.8297,148.61,148.58,22.4115]
[1718558185454,22.4068,148.62,148.52,15.0284]
[1718558185455,0.17,148.62,148.52,15.0284]
[1718558185638,5.34,148.57,148.56,2.4905]
[1718558185949,2.49,148.6,148.58,2.4901]
[1718558186125,5.34,148.59,148.58,2.4901]
[1718558186644,5.34,148.59,148.57,24.9032]
[1718558186948,5.34,148.59,148.58,7.4706]
[1718558187256,5.34,148.59,148.58,2.4902]
[1718558187927,5.34,148.59,148.57,24.9031]
[1718558188446,5.34,148.59,148.58,2.4902]
[1718558190036,5.34,148.59,148.58,24.9022]
[1718558190250,2.4897,148.62,148.59,22.4102]
[1718558190457,5.34,148.6,148.59,24.9001]
[1718558190660,5.34,148.61,148.59,7.4698]
[1718558191159,5.34,148.61,148.59,14.94]
[1718558191329,22.4897,148.62,148.59,24.9002]
[1718558191526,11.324,148.65,148.57,5.34]
[1718558191745,11.324,148.65,148.53,0.17]
[1718558191746,5.34,148.63,148.62,7.4683]
[1718558191945,5.34,148.63,148.62,24.8952]
[1718558192474,12.36787429,148.64,148.63,2.4894]
[1718558192770,12.36787429,148.64,148.62,24.8952]
[1718558192938,12.36787429,148.64,148.63,2.4894]
[1718558193138,12.36787429,148.64,148.62,24.8952]
[1718558193668,12.36787429,148.64,148.63,2.4894]
[1718558193843,7.02787429,148.64,148.63,2.4894]
[1718558194045,12.36787429,148.64,148.63,2.4894]
[1718558194363,12.36787429,148.64,148.62,24.8952]
[1718558194740,5.34,148.63,148.56,6.4013]
[1718558194947,5.34,148.63,148.62,2.4895]
[1718558195448,5.34,148.63,148.61,24.8967]
[1718558195968,5.34,148.63,148.62,2.4895]
[1718558196193,5.34,148.63,148.61,24.8967]
[1718558196851,5.34,148.63,148.62,2.4895]
[1718558197765,5.34,148.63,148.62,14.9373]
[1718558197946,5.34,148.63,148.62,24.8955]
[1718558198846,12.36787429,148.64,148.62,24.8955]
[1718558199472,12.36787429,148.64,148.63,2.4894]
[1718558201064,7.02787429,148.64,148.63,2.4894]
[1718558201275,12.36787429,148.64,148.63,14.9364]
[1718558201569,12.36787429,148.64,148.63,7.4682]
[1718558201954,5.34,148.64,148.63,7.4682]
[1718558202357,5.34,148.64,148.63,2.4894]
[1718558202556,2.4891,148.65,148.63,2.4894]
[1718558202756,31.91598346,148.66,148.63,7.4681]
[1718558202949,5.34,148.65,148.63,7.4681]
[1718558203273,5.34,148.64,148.63,7.4681]
[1718558203653,5.34,148.64,148.63,2.4894]
[1718558204549,7.02658346,148.66,148.64,2.4891]
[1718558204752,7.02658346,148.66,148.65,2.489]
[1718558205048,7.02658346,148.66,148.65,14.9343]
[1718558205281,8.2728136,148.69,148.66,24.8883]
[1718558205572,5.34,148.68,148.66,24.8883]
[1718558205768,7.8285,148.68,148.66,7.4663]
[1718558205977,5.34,148.68,148.66,7.4663]
[1718558206147,5.34,148.67,148.65,14.9339]
[1718558206357,5.34,148.67,148.66,2.4889]
[1718558206547,8.2730136,148.69,148.66,14.9334]
[1718558206745,5.34,148.68,148.66,7.4667]
[1718558207767,15.7382136,148.69,148.66,7.4667]
[1718558207963,5.34,148.68,148.66,7.4667]
[1718558208164,15.7382136,148.69,148.66,7.4667]
[1718558208391,5.34,148.68,148.66,7.4667]
[1718558208572,3.2960136,148.69,148.67,2.4886]
[1718558208881,5.34,148.68,148.67,2.4886]
[1718558209284,5.34,148.68,148.66,24.8885]
[1718558209674,0.8076136,148.69,148.67,7.466]
[1718558209888,6.1476136,148.69,148.67,7.466]
[1718558210060,5.34,148.68,148.67,7.466]
[1718558210687,3.2960136,148.69,148.67,2.4886]
[1718558210888,6.1476136,148.69,148.68,7.4656]
[1718558211199,6.1476136,148.69,148.68,14.9312]
[1718558211490,6.1476136,148.69,148.68,7.4656]
[1718558211678,6.1476136,148.69,148.68,2.4885]
[1718558211999,0.8076136,148.69,148.68,7.4656]
[1718558212560,0.8076136,148.69,148.68,2.4885]
[1718558213397,0.8076136,148.69,148.67,2.4885]
[1718558213596,8.6360136,148.69,148.67,2.4885]
[1718558213789,8.6360136,148.69,148.66,22.3993]
[1718558213790,13.6128136,148.69,148.66,7.4663]
[1718558213984,8.6360136,148.69,148.66,12.4441]
[1718558214184,13.6128136,148.69,148.66,7.4662]
[1718558214393,5.34,148.68,148.66,14.9328]
[1718558214566,5.34,148.68,148.67,2.4887]
[1718558216883,7.4662,148.67,148.64,2.4891]
[1718558217214,5.34,148.65,148.64,7.4674]
[1718558217380,5.34,148.65,148.64,14.9351]
[1718558217574,5.34,148.65,148.64,24.892]
[1718558217773,6.1476136,148.69,148.67,7.466]
[1718558218275,6.1476136,148.69,148.67,2.4886]
[1718558218276,8.6360136,148.69,148.67,2.4886]
[1718558218717,5.34,148.68,148.67,2.4886]
[1718558218906,5.34,148.68,148.62,5.34]
[1718558218907,7.8286,148.68,148.65,12.445]
[1718558219197,5.34,148.67,148.66,2.4888]
[1718558219696,8.2730136,148.69,148.66,7.4666]
[1718558219901,0.8076136,148.69,148.68,7.4656]
[1718558220111,6.1476136,148.69,148.68,7.4656]
[1718558220323,6.1476136,148.69,148.67,2.4886]
[1718558220477,27.7375,148.68,148.64,4.9783]
[1718558220678,27.7375,148.68,148.65,22.4014]
[1718558220679,5.34,148.66,148.65,22.4014]
[1718558220902,5.7846136,148.69,148.66,2.4888]
[1718558221102,5.34,148.68,148.66,7.4664]
[1718558221274,5.34,148.68,148.66,2.4888]
[1718558221476,5.34,148.68,148.67,14.9323]
[1718558221790,5.34,148.68,148.67,7.466]
[1718558222299,0.8076136,148.69,148.68,7.4656]
[1718558222499,6.1476136,148.69,148.67,7.4657]
[1718558222712,21.0780136,148.69,148.66,7.4664]
[1718558222885,13.6128136,148.69,148.66,7.4664]
[1718558223077,13.6128136,148.69,148.66,14.933]
[1718558223282,0.8076136,148.69,148.67,2.4887]
[1718558223605,6.1476136,148.69,148.67,7.466]
[1718558223786,6.1476136,148.69,148.66,17.4222]
[1718558223787,13.6128136,148.69,148.66,24.8884]
[1718558223988,13.6128136,148.69,148.66,7.4662]
[1718558224411,5.34,148.68,148.66,7.4662]
[1718558224727,5.34,148.68,148.65,17.4227]
[1718558224897,7.8286,148.68,148.66,2.4888]
[1718558225286,12.8058,148.68,148.65,7.4669]
[1718558225481,7.8287,148.67,148.65,2.489]
[1718558225783,7.8287,148.67,148.64,24.8911]
[1718558226001,12.8061,148.67,148.64,12.4456]
[1718558226222,7.8289,148.66,148.63,14.9357]
[1718558226403,2.4889,148.66,148.63,4.9786]
[1718558226588,5.34,148.64,148.63,7.4678]
[1718558226783,5.34,148.64,148.63,14.936]
[1718558227181,5.34,148.64,148.63,24.8936]
[1718558227494,24.8877,148.67,148.64,2.4891]
[1718558227811,5.34,148.65,148.64,7.4675]
[1718558228397,5.34,148.65,148.59,5.34]
[1718558228608,2.4893,148.64,148.61,14.9382]
[1718558228798,22.4026,148.65,148.62,2.4895]
[1718558229004,5.34,148.63,148.62,2.4895]
[1718558229407,5.34,148.63,148.62,14.9373]
[1718558229714,5.34,148.63,148.62,24.8955]
[1718558229922,127.3653,148.68,148.58,15.1191]
[1718558229923,42.4669,148.68,148.58,15.1191]
[1718558230118,5.34,148.65,148.64,14.9353]
[1718558230490,5.34,148.65,148.64,2.4892]
[1718558230901,7.829,148.65,148.63,2.4893]
[1718558231100,5.34,148.64,148.62,2.4895]
[1718558231326,5.34,148.63,148.62,2.4895]
[1718558231995,5.34,148.63,148.62,7.4686]
[1718558232194,5.34,148.63,148.62,2.4895]
[1718558234398,4.34,148.63,148.62,7.4686]
[1718558235316,4.34,148.63,148.62,2.4895]
[1718558236001,4.34,148.63,148.62,7.4686]
[1718558236194,4.34,148.63,148.62,14.9373]
[1718558236395,4.34,148.63,148.62,24.8955]
[1718558237717,4.34,148.63,148.62,7.4686]
[1718558239802,7.02705891,148.66,148.63,7.468]
[1718558240015,7.02705891,148.66,148.63,24.894]
[1718558240016,5.34,148.64,148.63,24.894]
[1718558240202,7.02705891,148.66,148.64,12.4459]
[1718558240425,5.34,148.65,148.64,7.4674]
[1718558240625,5.34,148.65,148.64,2.4892]
[1718558240925,5.34,148.65,148.63,24.8931]
[1718558241242,7.829,148.65,148.62,24.8948]
[1718558241402,5.34,148.64,148.62,24.8948]
[1718558241813,5.34,148.63,148.62,24.8948]
[1718558244325,5.34,148.63,148.62,2.4894]
[1718558244514,5.34,148.63,148.62,24.8954]
[1718558244718,5.34,148.63,148.62,7.4685]
[1718558246327,5.34,148.63,148.62,2.4894]
[1718558248810,5.34,148.63,148.62,7.4685]
[1718558249021,5.34,148.63,148.62,24.8954]
[1718558249405,14.49395891,148.66,148.63,14.9362]
[1718558249705,5.34,148.64,148.63,24.8938]
[1718558252042,5.34,148.64,148.63,7.4682]
[1718558253545,5.34,148.64,148.61,12.4484]
[1718558253546,7.8293,148.64,148.61,12.4484]
[1718558253846,5.34,148.63,148.61,24.8967]
[1718558254544,5.34,148.63,148.62,2.4895]
[1718558255546,5.34,148.63,148.62,7.4686]
[1718558256436,5.34,148.63,148.61,7.4689]
[1718558256640,5.34,148.62,148.6,7.4693]
[1718558256844,5.34,148.61,148.6,2.4897]
[1718558257221,5.34,148.61,148.6,24.8988]
[1718558257624,5.34,148.62,148.61,7.4689]
[1718558257826,5.34,148.62,148.61,14.9381]
[1718558258521,5.34,148.62,148.61,7.4689]
[1718558259634,5.34,148.62,148.61,2.4896]
[1718558260346,5.34,148.62,148.56,5.34]
[1718558260654,5.34,148.61,148.56,5.34]
[1718558261646,5.34,148.62,148.56,5.34]
[1718558261825,5.34,148.62,148.54,15.3415]
[1718558262144,5.34,148.62,148.56,5.34]
[1718558264753,2.4896,148.62,148.54,15.3415]
[1718558265047,7.4687,148.62,148.54,20.6815]
[1718558265232,5.34,148.6,148.54,20.6815]
[1718558265420,5.34,148.6,148.54,15.3415]
[1718558265623,5.34,148.6,148.54,20.6815]
[1718558267349,5.34,148.6,148.54,15.3415]
[1718558267566,5.34,148.6,148.54,20.6815]
[1718558269539,5.34,148.6,148.55,5.34]
[1718558269962,5.34,148.61,148.55,5.34]
[1718558270460,2.4891,148.65,148.55,0.17]
[1718558270756,5.34,148.64,148.58,5.34]
[1718558270964,23.4077,148.66,148.55,0.34]
[1718558271155,20.0,148.65,148.59,5.34]
[1718558271332,5.34,148.64,148.59,5.34]
[1718558273933,23.4075,148.66,148.59,5.34]
[1718558274132,5.34,148.64,148.59,5.34]
[1718558275174,9.51556766,148.67,148.6,22.5189]
[1718558275372,12.36676766,148.67,148.61,5.34]
[1718558275548,7.8287,148.67,148.61,5.34]
[1718558275747,5.34,148.67,148.61,5.34]
[1718558276159,5.34,148.67,148.62,5.34]
[1718558276872,7.8287,148.67,148.62,5.34]
[1718558277671,7.8287,148.67,148.61,5.34]
[1718558278351,2.4889,148.66,148.6,22.5189]
[1718558278548,12.8067,148.66,148.6,27.8589]
[1718558278784,20.2734,148.66,148.6,27.8589]
[1718558278966,12.8067,148.66,148.6,27.8589]
[1718558279180,5.34,148.65,148.6,27.8589]
[1718558279677,7.829,148.65,148.6,27.8589]
[1718558279852,5.34,148.65,148.6,27.8589]
[1718558280052,7.829,148.65,148.6,27.8589]
[1718558280355,5.34,148.65,148.6,27.8589]
[1718558282275,2.489,148.66,148.6,27.8589]
[1718558282477,5.34,148.65,148.6,27.8589]
[1718558282987,5.34,148.66,148.6,27.8589]
[1718558283160,7.8289,148.66,148.6,27.8589]
[1718558283782,5.34,148.66,148.6,27.8589]
[1718558284284,7.8289,148.66,148.6,27.8589]
[1718558284460,5.34,148.66,148.6,27.8589]
[1718558284970,3.2960136,148.69,148.62,5.34]
[1718558285159,3.2960136,148.69,148.6,22.5189]
[1718558285160,5.34,148.67,148.61,5.34]
[1718558285361,3.2960136,148.69,148.61,5.34]
[1718558285566,5.34,148.67,148.62,5.34]
[1718558286773,7.8287,148.67,148.61,5.34]
[1718558286980,5.34,148.66,148.61,5.34]
[1718558287189,5.34,148.65,148.6,22.5189]
[1718558287361,5.34,148.65,148.6,27.8589]
[1718558287770,5.34,148.66,148.6,27.8589]
[1718558288676,2.4886,148.68,148.61,5.34]
[1718558288861,5.34,148.66,148.61,5.34]
[1718558289262,5.34,148.67,148.62,5.34]
[1718558289673,2.4885,148.68,148.62,5.34]
[1718558289881,5.34,148.67,148.62,5.34]
[1718558293899,5.34,148.67,148.61,5.34]
[1718558294193,7.8287,148.67,148.61,5.34]
[1718558294492,20.2724,148.67,148.6,22.5189]
[1718558294697,5.34,148.66,148.6,27.8589]